Cogmind - Beta 13 @@@ ROGUE MODE // 2024.04.03 @ 00:01:06 Player: Olafz Result: Destroyed by G-47 Trooper with Particle Gun Performance ------------- Evolutions (1) 500 Regions Visited (2) 400 Robots Destroyed (17) 85 Value Destroyed (319) 319 Prototype IDs (2) 40 Alien Tech Used (0) 0 Bonus (0) 0 TOTAL SCORE: 1344 Bonus ------- None Cogmind --------- Core Integrity 0/400 Matter 300/300 Energy 98/100 System Corruption 1% Temperature Cool (9) Movement Core (50) Location -9/Materials Parts ------- > --- POWER (1) -------- (None) > --- PROPULSION (2) --- (None) > --- UTILITY (4) ------ Transport Network Coupler > --- WEAPON (2) ------- (None) > --- INVENTORY (5) ---- Ion Engine Ion Engine Light Ion Engine Small Laser Peak State ------------ > --- POWER ------------ Light Ion Engine > --- PROPULSION ------- Aluminum Leg > --- UTILITY ---------- Small Storage Unit Transport Network Coupler > --- WEAPON ----------- Beam Rifle Beam Rifle > --- INVENTORY -------- Ion Engine Ion Engine Light Ion Engine Small Laser [Rating: 8] Favorites ----------- Power Light Ion Engine Engine Light Ion Engine Propulsion Aluminum Leg Leg Aluminum Leg Utility Small Storage Unit Device Cooling System Storage Small Storage Unit Processor Transport Network Coupler Weapon Light Assault Rifle Energy Gun Beam Rifle Ballistic Gun Light Assault Rifle Build | -11 -10 -9 ------- Run | Yrd Mat Mat Slots Evolved 2 | . . 2 Power . | . . . Propulsion . | . . . Utility 2 | . . 2 Weapon . | . . . Parts Attached 19 | 6 4 9 Power 5 | 1 2 2 Engine 5 | 1 2 2 Core . | . . . Reactor . | . . . Propulsion 4 | 2 . 2 Treads . | . . . Leg 4 | 2 . 2 Wheel . | . . . Hover . | . . . Flight . | . . . Utility 3 | 1 . 2 Device 1 | . . 1 Storage 1 | 1 . . Processor 1 | . . 1 Hackware . | . . . Protection . | . . . Artifact . | . . . Weapon 7 | 2 2 3 Energy Gun 3 | . . 3 Energy Cannon . | . . . Ballistic Gun 4 | 2 2 . Ballistic Cannon . | . . . Launcher . | . . . Special Weapon . | . . . Impact Weapon . | . . . Slashing Weapon . | . . . Piercing Weapon . | . . . Special Melee Weapon . | . . . Unidentified Prototypes . | . . . Parts Lost 14 | . 4 10 Power 3 | . 1 2 Propulsion 4 | . 1 3 Utility 1 | . . 1 Weapon 6 | . 2 4 Highest Loss Streak 5 | . 4 5 To Critical Strikes 1 | . 1 . Average Slot Usage (%) 63 | . 80 51 Engine 10 | . 12 8 Leg 16 | . 26 8 Device 1 | . . 2 Storage 11 | . 14 10 Processor 2 | . . 4 Energy Gun 5 | . . 9 Ballistic Gun 15 | . 26 6 Naked Turns . | . . . Heaviest Build 14 | 11 13 14 Greatest Support 20 | 20 20 10 Greatest Overweight (x) 4 | . . 4 Average Overweight (x) . | . . . Largest Inventory Capacity 8 | 8 8 8 Average Capacity 7 | 6 8 7 Most Carried 4 | 1 2 4 Average Carried 2 | . 1 2 Final Capacity 8 | 8 8 5 Final Carried 4 | 1 2 4 Class Distribution -------------------- 100% | Mutant Dominant Class ---------------- Mutant | -10/Materials Mutant | -9/Materials Resources | -11 -10 -9 ----------- Run | Yrd Mat Mat Matter Collected 509 | 253 148 108 Remotely . | . . . Salvage Created 571 | . 301 270 Parts 30 | . 16 14 Haulers Intercepted 2 | . 1 1 Recyclers Shooed 1 | . . 1 Parts Field Recycled . | . . . Retrieved Matter . | . . . Parts Self-Destructed . | . . . Prevented . | . . . Kills | -11 -10 -9 ------- Run | Yrd Mat Mat Combat Hostiles Destroyed 13 | . 8 5 Guns 13 | . 8 5 Classes Destroyed 5 | . 3 2 Worker 1 | . . 1 Hauler 2 | . 1 1 Recycler 1 | . . 1 Swarmer 6 | . 3 3 Grunt 7 | . 5 2 Best Kill Streak 5 | . 3 5 Combat Bots Only 3 | . 3 3 Max Kills in Single Turn 1 | . 1 1 Gunslinging . | . . . Exploded . | . . . Melee . | . . . Uniques/NPCs Destroyed . | . . . Combat | -11 -10 -9 -------- Run | Yrd Mat Mat Hostile Shots Fired 231 | . 88 143 Missed 74 | . 27 47 Damage Taken 1720 | . 562 1158 Core 532 | . 119 413 Absorbed by Shields . | . . . Core Remaining (%) 76 | 100 52 . Volleys Fired 116 | . 45 71 Largest 2 | . 2 2 Hottest 112 | . 40 112 Shots Fired 169 | . 71 98 Gun 169 | . 71 98 Cannon . | . . . Launcher . | . . . Special . | . . . Kinetic 114 | . 71 43 Thermal 55 | . . 55 Explosive . | . . . Electromagnetic . | . . . Robot Hit Streak 10 | . 9 10 Robot Miss Streak 3 | . 3 3 Penetration Max . | . . . Secondary Targets . | . . . Shots Hit Robots 107 | . 38 69 Core Hits 35 | . 17 18 Critical Kills . | . . . Critical Parts Destroyed . | . . . Critical Strikes 3 | . . 3 Burn 3 | . . 3 Melee Attacks . | . . . Impact . | . . . Slashing . | . . . Piercing . | . . . Sneak Attacks . | . . . Combat Hostiles . | . . . Follow-up Attacks . | . . . Damage Inflicted 1102 | . 359 743 Guns 1097 | . 358 739 Cannons . | . . . Explosions . | . . . Melee . | . . . Ramming 5 | . 1 4 Kinetic 588 | . 358 230 Thermal 509 | . . 509 Explosive . | . . . Electromagnetic . | . . . Impact . | . . . Slashing . | . . . Piercing . | . . . Highest Corruption 1 | . . 1 Average Corruption 1 | . . 1 Corruption Purged . | . . . Corruption Blocked . | . . . Effects 3 | . . 3 Parts Rejected 1 | . . 1 Misfires 1 | . . 1 Alerts 1 | . . 1 Overload Shots . | . . . Overflow Damage . | . . . Projectiles . | . . . Explosions . | . . . Melee . | . . . Knockbacks . | . . . Impact . | . . . Kinetic . | . . . Secondary . | . . . Self-Inflicted Damage 1 | . . 1 Shots . | . . . Rammed 3 | . . 3 Targets Rammed 4 | . 1 3 Kicked 1 | . 1 . Crushed . | . . . Highest Temperature 204 | . 18 204 Average Temperature 52 | . 6 70 Received Heat Transfer 636 | . 126 510 Siege Activations . | . . . Robots Corrupted . | . . . Combat Hostiles . | . . . Parts Fried . | . . . Impact Corruptions . | . . . Robots Melted . | . . . Combat Hostiles . | . . . Parts Melted 1 | . . 1 Heat Transferred 1452 | . . 1452 Parts Sabotaged . | . . . Parts Stolen . | . . . Parts Stripped . | . . . Power Chain Reactions . | . . . Alert | -11 -10 -9 ------- Run | Yrd Mat Mat Peak Influence 192 | . 192 187 Initial 80 | . . 80 Average 97 | . 100 114 Maximum Alert Level . | . . . Low Security (%) 100 | 100 100 100 Level 1 . | . . . Level 2 . | . . . Level 3 . | . . . Level 4 . | . . . Level 5 . | . . . High Security . | . . . Max Security . | . . . Squads Dispatched 4 | . 2 2 Investigation 3 | . 2 1 Extermination . | . . . Reinforcement 1 | . . 1 Assault . | . . . Garrison . | . . . Intercept . | . . . Searches Triggered . | . . . Construction Impeded . | . . . Haulers Reinforced . | . . . Active Scanning Responses . | . . . Cargo Convoy Interrupts . | . . . Stealth | -11 -10 -9 --------- Run | Yrd Mat Mat Distress Signals 1 | . . 1 Communications Jammed . | . . . Distress Signals . | . . . Times Spotted 26 | . 8 18 Peak Tracking Total 9 | . 3 9 Tactical Retreats . | . . . Traps | -11 -10 -9 ------- Run | Yrd Mat Mat Traps Triggered . | . . . Indirectly . | . . . Trap Hack Attempts . | . . . Triggered . | . . . Disarmed . | . . . Reprogrammed . | . . . Reused . | . . . Traps Extracted . | . . . Installed . | . . . Triggered . | . . . Machines | -11 -10 -9 ---------- Run | Yrd Mat Mat Machines Disabled 1 | . 1 . Max in Single Turn 1 | . 1 . Machines Repaired . | . . . Machines Dismantled . | . . . Machines Sabotaged . | . . . Overloaded Fab Kills . | . . . Hacking | -11 -10 -9 --------- Run | Yrd Mat Mat Machines Accessed 3 | . 2 1 Terminals 2 | . 2 . Fabricators . | . . . Repair Stations . | . . . Recycling Units 1 | . . 1 Scanalyzers . | . . . Garrison Access . | . . . Total Hacks 10 | . 5 5 Successful 3 | . 1 2 Failed 7 | . 4 3 Catastrophic 1 | . 1 . Database Lockouts . | . . . Manual . | . . . Terminals 5 | . 5 . Fabricators . | . . . Repair Stations . | . . . Recycling Units 5 | . . 5 Scanalyzers . | . . . Garrison Access . | . . . Terminal Hacks 1 | . 1 . Prototype ID Bank 1 | . 1 . Fabricator Hacks . | . . . Repair Station Hacks . | . . . Recycling Unit Hacks 2 | . . 2 Report Inventory 1 | . . 1 Retrieve Components 1 | . . 1 Scanalyzer . | . . . Garrison Access Hacks . | . . . Unauthorized Hacks . | . . . Terminals . | . . . Fabricators . | . . . Repair Stations . | . . . Recycling Units . | . . . Scanalyzers . | . . . Garrison Access . | . . . Data Cores Recovered . | . . . Used . | . . . Hacking Detections 3 | . 2 1 Full Trace Events 3 | . 2 1 Feedback Events 1 | . . 1 Corruption 1 | . . 1 Feedback Blocked . | . . . Robot Schematics Acquired . | . . . Robots Built . | . . . Authchips . | . . . Time . | . . . Total Robot Build Rating . | . . . Part Schematics Acquired . | . . . Parts Built . | . . . Authchips . | . . . Time . | . . . Total Part Build Rating . | . . . Parts Repaired . | . . . Time . | . . . Parts Recycled . | . . . Recycled Matter . | . . . Retrieved Matter . | . . . Retrieved Components 3 | . . 3 Parts Scanalyzed . | . . . Part Schematics Acquired . | . . . Parts Damaged . | . . . Bothacking | -11 -10 -9 ------------ Run | Yrd Mat Mat Used RIF Installer . | . . . Robots Hacked . | . . . Non-combat . | . . . Combat . | . . . Robot Hacks Applied . | . . . Relay Couplers Released . | . . . Fabnet Peak Effective % . | . . . Robots Rewired . | . . . Allies Hacked . | . . . Hacks Repelled . | . . . Allies | -11 -10 -9 -------- Run | Yrd Mat Mat Total Allies . | . . . Largest Group . | . . . Highest-Rated Group . | . . . Highest-Rated Ally . | . . . Total Orders . | . . . Ally Attacks . | . . . Total Damage . | . . . Kills . | . . . Allies Corrupted . | . . . Allies Melted . | . . . Intel | -11 -10 -9 ------- Run | Yrd Mat Mat Robot Analysis Total . | . . . Derelict Logs Recovered . | . . . Drone Launches . | . . . Drone Recoveries . | . . . Exploration | -11 -10 -9 ------------- Run | Yrd Mat Mat Turns Passed 731 | 78 281 372 Spaces Moved 327 | 59 140 128 Core 30 | 3 . 27 Treads . | . . . Legs 297 | 56 140 101 Wheels . | . . . Hover . | . . . Flight . | . . . Fastest Speed 50 | 50 120 50 Average Speed 132 | 116 120 152 Slowest Speed 250 | 120 120 250 Overloaded Moves . | . . . Propulsion Burnouts . | . . . Robots Hopped . | . . . Cave-ins Triggered . | . . . Exploration Rate (%) 15 | 4 20 22 Regions Visited 2 Branch Regions . Pre-discovered Areas . | . . . Known Exits Taken . | . . . Unknown Exits Taken 2 | 1 1 . Scrap Searched . | . . . Spaces Dug . | . . . Terrain Destroyed . | . . . Melee . | . . . Projectile . | . . . AOE . | . . . Terrain Rammed . | . . . Walls Destroyed . | . . . Machines Disabled . | . . . Actions | -11 -10 -9 --------- Run | Yrd Mat Mat Total 466 | 65 189 212 Wait . | . . . Move 325 | 58 139 128 Hop . | . . . Pick Up 1 | 1 . . Fast Attach 17 | 6 3 8 Attach . | . . . Detach 1 | . . 1 Swap 2 | . 1 1 Drop . | . . . Fire 116 | . 45 71 Melee . | . . . Ram 3 | . . 3 Kick 1 | . 1 . Crush . | . . . Escape Stasis . | . . . Rewire . | . . . Trap . | . . . Miscellaneous . | . . . Route ------- -11/Scrapyard -10/Materials -9/Materials History --------- Turn | Location | Event 7 | -11/Scrapyard | Discovered new exit (range 15) 79 | -11/Scrapyard | Entered Materials 300 | -10/Materials | Build established: Mutant 302 | -10/Materials | Discovered new exit (range 4) 360 | -10/Materials | Entered another Materials area 360 | -9/Materials | Evolved 2 slots: Utility x2 364 | -9/Materials | Lost 4 parts (1p1n2w) 515 | -9/Materials | Lost 4 parts (1p1n2w) 689 | -9/Materials | Core integrity fell below 50% 730 | -9/Materials | Core integrity fell below 20% 732 | -9/Materials | Destroyed by G-47 Trooper with Particle Gun Last Messages --------------- 00630_ Lgt. Ion Engine melted. 00630_ R-06 Scavenger destroyed. 00635_ Acquired 20 matter. 00662_ K-01 Serf collects debris. 00663_ K-01 Serf cleans the Matter Pump. 00669_ K-01 Serf collects debris. 00681_ K-01 Serf cleans the Matter Pump. 00701_ ALERT: Hostiles spotted, dispatching reinforcements to Terminal M006. 00707_ Aluminum Leg destroyed. 00710_ Sml. Storage Unit destroyed. 00713_ Lgt. Ion Engine destroyed. 00715_ L-31 Rogue suffers critical hit (Burn). 00716_ Beam Rifle destroyed. 00720_ L-31 Rogue destroyed. 00722_ G-34 Mercenary suffers critical hit (Burn). 00724_ Beam Rifle destroyed. 00727_ Slammed into G-34 Mercenary. 00729_ Slammed into G-47 Trooper. 00731_ K-01 Serf destroyed. Map ----- +----------------------------------------------------+ | ????????????????????? ""?#! #??????? | | ???????????????????? ?#%! #??????? | | ???????????????? ############! #??????? | | ??????????????? [[[ #????### | | ?????????????? [[ #??? # | | ?????????????? [[ "#???! # | | ?????????????? T#??!! # | | ??????????????? "##?! # | | ??????????????? # # | | ???????????### # # | | ?????????? """ + # | | ?????????? """ """ # """# | | ??????????? """ """ # """# | | ?????????????# """ #? R"# | | ?????????????# #? """# | | ?????????????# #?? # | | ?????????????# """ ##########??# ## | | ?????????????# """ #????????????##? | | ?????????????# """ #??????????????? | | ?????????????# ##########?????? | | ?????????????# # =??????? | | ?????????????# """ # ???????? | | ?????????????# """ # """ ???????? | | ?????????????# """ # """"" ??????? | | ?????????????# gggY# """"" ??????? | | ??????????"" + g%/@g""""" !#????? | | ?????????????# !%#% """ #????? | | ?????????????####+### # #????? | | ????????????????????# ###########????? | | ????????????????????# #??????????????? | | ????????????????????# #??????????????? | | ????????????????????# #??????????????? | | ????????????????????# #??????????????? | | ????????????????????# #??????????????? | | ????????????????????# ???????????????? | | ????????????????????# ???????????????? | | ????????????????????# ???????????????? | | ????????????????????# ???????????????? | | ????????????????????# ???????????????? | | ????????????????????# ???????????????? | | ????????????????????? ???????????????? | | ???????????????????????????????????????? | | ???????????????????????????????????????? | | ??????????????????????????a????????????? | | ???????????????????????????????????????? | | ???????????????????????????????????????? | | ???????????????????????????????????????? | | ???????????????????????????????????????? | | ???????????????????????????????????????? | | ???????????????????????????????????????? | +----------------------------------------------------+ Best States ------------- Heat Dissipation 50 Energy Generation 10 Energy Capacity 250 Matter Stores 300 Matter Capacity 300 Sight Range 16 Terrain Scan Density 10 Evasion (%) 55 Item Schematics ----------------- None Robot Schematics ------------------ None Fabricated ------------ Nothing Alien Tech Used ----------------- None Achievements -------------- None Challenges ------------ None Game ------ Seed CommSkeletonTerrabomb Manual? 0 Play Time 00:08:20 Cumulative 14.8 hours Start 2024.04.02 @ 23:46:18 End 2024.04.03 @ 00:01:06 Sessions 1 Manual Loads 0 Difficulty Rogue Special Mode None Game No. 44 Rogue 42 Adventurer 2 Explorer 0 Win Type - Total 0 Types 0/0/0/0/0/0/0/0/0 Lore% 16 Gallery% 19 Achievement% 18 Wizard Run 0 Options --------- Layout 0 ASCII 0 Keyboard 1 Movement Arrows Keybinds 0 Fullscreen 2 Font 18/SmallcapsGlow Map View 76x50 Zoom Use 0% Tactical HUD 1 Map Filters NONE Filters NONE Steam 1 RUN: 2d432db4-8431-4730-aade-b16ec17cc0df